{"text_format":"1","workbook":"xlsx","n_sheets":3,"sheets":["Produktionsanlæg","Distributionsanlæg","Fællesfunktionsanlæg"],"not_rendered":{"charts":0,"images":0,"macros":1,"external_links":0,"defined_names":2,"comments":0,"pivot_tables":0},"unopened":[],"bounds":{"document_bytes":16777216,"sheet_cells":100000,"rows_first":2000,"rows_last":500,"rows_between":2000,"halvings":0,"cell_chars":16384,"cell_head_chars":4096},"cells_cut":0,"cells_raw":0,"read":"whole","date_system":"1900"}

{"sheet":"Produktionsanlæg","index":0,"n_rows":552,"n_cols":9,"rows_kept":552,"cut":false,"hidden":false,"merged":[[0,0,1,0],[0,1,1,1],[0,2,1,2],[0,3,1,3],[0,8,1,8],[0,4,1,4],[0,5,1,5],[0,6,1,6],[0,7,1,7]]}
["Produktionsanlæg","Enhed","Standard-levetid","Samlet mængde per 31/12-2022","Samlet mængde per 31/12-2023","Samlet mængde per 31/12-2024","Afvigelse 2022-2023","Afvigelse 2023-2024","Bemærkninger"]
[]
["Renseanlæg 1",null,null,null,null,null,{"$f":"IF(D3=\"\",IF(E3>0,\"Ny data\",IF(E3=\"\",\"\",0)),IF(D3=0,IF(E3=0,0,\"Ny data\"),(E3-D3)/D3))","v":""},{"$f":"IF(E3=\"\",IF(F3>0,\"Ny data\",IF(F3=\"\",\"\",0)),IF(E3=0,IF(F3=0,0,\"Ny data\"),(F3-E3)/E3))","v":""}]
["Mindre renseanlæg",null,null,null,null,null,"",""]
["Mindre renseanlæg < 5.000 PE","PE",40,150,150,150,0,0]
["Renseanlæg >= 5.000 PE, Vandbehandling",null,null,null,null,null,"",""]
["Indløb med riste, Konstruktioner","PE",60,41600,41600,41600,0,0]
["Indløb med riste, Mek/EL","PE",20,41600,41600,41600,0,0]
["Indløb med riste, SRO","PE",10,41600,41600,41600,0,0]
["Sand- og fedtfang, Kontruktioner","PE",60,41600,41600,41600,0,0]
["Sand- og fedtfang, Mek/EL","PE",20,41600,41600,41600,0,0]
["Sand- og fedtfang, SRO","PE",10,41600,41600,41600,0,0]
["Forklaring, Konstruktioner","PE",60,0,null,null,0,""]
["Forklaring, Mek/EL","PE",20,0,null,null,0,""]
["Forklaring, SRO","PE",10,0,null,null,0,""]
["Beluftningstanke, Konstruktioner","PE",60,41600,41600,41600,{"$f":"IF(D16=\"\",IF(E16>0,\"Ny data\",IF(E16=\"\",\"\",0)),IF(D16=0,IF(E16=0,0,\"Ny data\"),(E16-D16)/D16))","v":0},{"$f":"IF(E16=\"\",IF(F16>0,\"Ny data\",IF(F16=\"\",\"\",0)),IF(E16=0,IF(F16=0,0,\"Ny data\"),(F16-E16)/E16))","v":0}]
["Beluftningstanke, Mek/EL","PE",20,41600,41600,41600,0,0]
["Beluftningstanke, SRO","PE",10,41600,41600,41600,0,0]
["Efterklaringstanke, Konstruktioner","PE",60,41600,41600,41600,0,0]
["Efterklaringstanke, Mek/El","PE",20,41600,41600,41600,0,0]
["Efterklaringstanke, SRO","PE",10,41600,41600,41600,{"$f":"IF(D21=\"\",IF(E21>0,\"Ny data\",IF(E21=\"\",\"\",0)),IF(D21=0,IF(E21=0,0,\"Ny data\"),(E21-D21)/D21))","v":0},{"$f":"IF(E21=\"\",IF(F21>0,\"Ny data\",IF(F21=\"\",\"\",0)),IF(E21=0,IF(F21=0,0,\"Ny data\"),(F21-E21)/E21))","v":0}]
["Efterbehandlingsanlæg (sandfilter), Konstruktioner","PE",60,0,null,null,0,""]
["Efterbehandlingsanlæg (sandfilter), Mek/EL","PE",20,0,null,null,0,""]
["Efterbehandlingsanlæg (sandfilter), SRO","PE",10,0,null,null,0,""]
["Renseanlæg >= 5.000 PE, Slambehandling",null,null,null,null,null,"",""]
["Forafvanding, slam, Konstruktion","PE",60,0,null,null,0,""]
["Forafvanding, slam, Mek/EL","PE",20,0,null,null,0,""]
["Forafvanding, slam, SRO","PE",10,0,null,null,0,""]
["Rådnetanke, slam, Konstruktioner","PE",60,0,null,null,0,""]
["Rådnetanke, slam, Mek/EL","PE",20,0,null,null,0,""]
["Rådnetanke, slam, SRO","PE",10,0,null,null,0,""]
["Gasdisponering, Konstruktioner","PE",60,0,null,null,0,""]
["Gasdisponering, Mek/EL","PE",20,0,null,null,0,""]
["Gasdisponering, SRO","PE",10,0,null,null,0,""]
["Gasdisponering - elproduktionsanlæg, Konstruktioner","PE",60,0,null,null,0,""]
["Gasdisponering - elproduktionsanlæg, Mek/EL","PE",20,0,null,null,0,""]
["Gasdisponering - elproduktionsanlæg, SRO","PE",10,0,null,null,0,""]
["Gasrensning - Aktivt kulfilter","m3/t",15,1000,1000,1000,0,0]
["Gasrensning - Biologisk skrubber","m3/t",15,0,null,null,0,""]
["Opgraderingsanlæg - Membran","m3/t",15,0,null,null,0,""]
["Varmeproduktionsanlæg","m3/t",15,0,null,null,0,""]
["Slutafvanding, slam - lavteknologisk (slambede), Konstruktioner","PE",60,0,null,null,0,""]
["Slutafvanding, slam - lavteknologisk (slambede), Mek/EL","PE",20,0,null,null,0,""]
["Slutafvanding, slam - lavteknologisk (slambede), SRO","PE",10,0,null,null,0,""]
["Slutafvanding, slam - højteknologisk (centrifuger), Konstruktioner","PE",60,41600,41600,41600,0,0]
["Slutafvanding, slam - højteknologisk (centrifuger), Mek/El","PE",20,41600,41600,41600,0,0]
["Slutafvanding, slam - højteknologisk (centrifuger), SRO","PE",10,41600,41600,41600,0,0]
["Renseanlæg >= 5.000 PE, Slamdisponering",null,null,null,null,null,"",""]
["Slutdisponering, slam - lavteknologisk (slammineralisering), Konstruktioner","PE",60,0,null,null,0,""]
["Slutdisponering, slam - lavteknologisk (slammineralisering), Mek/EL","PE",20,0,null,null,0,""]
["Slutdisponering, slam - lavteknologisk (slammineralisering), SRO","PE",10,0,null,null,0,""]
["Slutdisponering, slam - højteknologisk (slamtørring), Konstruktioner","PE",60,0,null,null,0,""]
["Slutdisponering, slam - højteknologisk (slamtørring), Mek/EL","PE",20,0,null,null,0,""]
["Slutdisponering, slam - højteknologisk (slamtørring), SRO","PE",10,0,null,null,0,""]
["Slutdisponering, slam - højteknologisk (slamtørring og -forbrænding), Konstruktioner","PE",60,0,null,null,0,""]
["Slutdisponering, slam - højteknologisk (slamtørring og -forbrænding), Mek/EL","PE",20,0,null,null,0,""]
["Slutdisponering, slam - højteknologisk (slamtørring og -forbrænding), SRO","PE",10,0,null,null,0,""]
["Renseanlæg 2",null,null,null,null,null,"",""]
["Mindre renseanlæg",null,null,null,null,null,"",""]
["Mindre renseanlæg < 5.000 PE","PE",40,0,null,null,0,""]
["Renseanlæg >= 5.000 PE, Vandbehandling",null,null,null,null,null,"",""]
["Indløb med riste, Konstruktioner","PE",60,0,null,null,0,""]
["Indløb med riste, Mek/EL","PE",20,0,null,null,0,""]
["Indløb med riste, SRO","PE",10,0,null,null,0,""]
["Sand- og fedtfang, Kontruktioner","PE",60,0,null,null,0,""]
["Sand- og fedtfang, Mek/EL","PE",20,0,null,null,0,""]
["Sand- og fedtfang, SRO","PE",10,0,null,null,{"$f":"IF(D67=\"\",IF(E67>0,\"Ny data\",IF(E67=\"\",\"\",0)),IF(D67=0,IF(E67=0,0,\"Ny data\"),(E67-D67)/D67))","v":0},{"$f":"IF(E67=\"\",IF(F67>0,\"Ny data\",IF(F67=\"\",\"\",0)),IF(E67=0,IF(F67=0,0,\"Ny data\"),(F67-E67)/E67))","v":""}]
["Forklaring, Konstruktioner","PE",60,0,null,null,0,""]
["Forklaring, Mek/EL","PE",20,0,null,null,0,""]
["Forklaring, SRO","PE",10,0,null,null,0,""]
["Beluftningstanke, Konstruktioner","PE",60,0,null,null,0,""]
["Beluftningstanke, Mek/EL","PE",20,0,null,null,0,""]
["Beluftningstanke, SRO","PE",10,0,null,null,0,""]
["Efterklaringstanke, Konstruktioner","PE",60,0,null,null,0,""]
["Efterklaringstanke, Mek/El","PE",20,0,null,null,0,""]
["Efterklaringstanke, SRO","PE",10,0,null,null,0,""]
["Efterbehandlingsanlæg (sandfilter), Konstruktioner","PE",60,0,null,null,0,""]
["Efterbehandlingsanlæg (sandfilter), Mek/EL","PE",20,0,null,null,0,""]
["Efterbehandlingsanlæg (sandfilter), SRO","PE",10,0,null,null,0,""]
["Renseanlæg >= 5.000 PE, Slambehandling",null,null,null,null,null,"",""]
["Forafvanding, slam, Konstruktion","PE",60,0,null,null,0,""]
["Forafvanding, slam, Mek/EL","PE",20,0,null,null,0,""]
["Forafvanding, slam, SRO","PE",10,0,null,null,0,""]
["Rådnetanke, slam, Konstruktioner","PE",60,0,null,null,0,""]
["Rådnetanke, slam, Mek/EL","PE",20,0,null,null,0,""]
["Rådnetanke, slam, SRO","PE",10,0,null,null,0,""]
["Gasdisponering, Konstruktioner","PE",60,0,null,null,0,""]
["Gasdisponering, Mek/EL","PE",20,0,null,null,0,""]
["Gasdisponering, SRO","PE",10,0,null,null,0,""]
["Gasdisponering - elproduktionsanlæg, Konstruktioner","PE",60,0,null,null,0,""]
["Gasdisponering - elproduktionsanlæg, Mek/EL","PE",20,0,null,null,0,""]
["Gasdisponering - elproduktionsanlæg, SRO","PE",10,0,null,null,0,""]
["Gasrensning - Aktivt kulfilter","m3/t",15,0,null,null,0,""]
["Gasrensning - Biologisk skrubber","m3/t",15,0,null,null,0,""]
["Opgraderingsanlæg - Membran","m3/t",15,0,null,null,0,""]
["Varmeproduktionsanlæg","m3/t",15,0,null,null,0,""]
["Slutafvanding, slam - lavteknologisk (slambede), Konstruktioner","PE",60,0,null,null,0,""]
["Slutafvanding, slam - lavteknologisk (slambede), Mek/EL","PE",20,0,null,null,0,""]
["Slutafvanding, slam - lavteknologisk (slambede), SRO","PE",10,0,null,null,0,""]
["Slutafvanding, slam - højteknologisk (centrifuger), Konstruktioner","PE",60,0,null,null,0,""]
["Slutafvanding, slam - højteknologisk (centrifuger), Mek/El","PE",20,0,null,null,0,""]
["Slutafvanding, slam - højteknologisk (centrifuger), SRO","PE",10,0,null,null,0,""]
["Renseanlæg >= 5.000 PE, Slamdisponering",null,null,null,null,null,"",""]
["Slutdisponering, slam - lavteknologisk (slammineralisering), Konstruktioner","PE",60,0,null,null,0,""]
["Slutdisponering, slam - lavteknologisk (slammineralisering), Mek/EL","PE",20,0,null,null,0,""]
["Slutdisponering, slam - lavteknologisk (slammineralisering), SRO","PE",10,0,null,null,0,""]
["Slutdisponering, slam - højteknologisk (slamtørring), Konstruktioner","PE",60,0,null,null,0,""]
["Slutdisponering, slam - højteknologisk (slamtørring), Mek/EL","PE",20,0,null,null,0,""]
["Slutdisponering, slam - højteknologisk (slamtørring), SRO","PE",10,0,null,null,0,""]
["Slutdisponering, slam - højteknologisk (slamtørring og -forbrænding), Konstruktioner","PE",60,0,null,null,0,""]
["Slutdisponering, slam - højteknologisk (slamtørring og -forbrænding), Mek/EL","PE",20,0,null,null,0,""]
["Slutdisponering, slam - højteknologisk (slamtørring og -forbrænding), SRO","PE",10,0,null,null,0,""]
["Renseanlæg 3",null,null,null,null,null,"",""]
["Mindre renseanlæg",null,null,null,null,null,"",""]
["Mindre renseanlæg < 5.000 PE","PE",40,0,null,null,0,""]
["Renseanlæg >= 5.000 PE, Vandbehandling",null,null,null,null,null,"",""]
["Indløb med riste, Konstruktioner","PE",60,0,null,null,0,""]
["Indløb med riste, Mek/EL","PE",20,0,null,null,0,""]
["Indløb med riste, SRO","PE",10,0,null,null,0,""]
["Sand- og fedtfang, Kontruktioner","PE",60,0,null,null,0,""]
["Sand- og fedtfang, Mek/EL","PE",20,0,null,null,0,""]
["Sand- og fedtfang, SRO","PE",10,0,null,null,0,""]
["Forklaring, Konstruktioner","PE",60,0,null,null,0,""]
["Forklaring, Mek/EL","PE",20,0,null,null,0,""]
["Forklaring, SRO","PE",10,0,null,null,0,""]
["Beluftningstanke, Konstruktioner","PE",60,0,null,null,0,""]
["Beluftningstanke, Mek/EL","PE",20,0,null,null,0,""]
["Beluftningstanke, SRO","PE",10,0,null,null,0,""]
["Efterklaringstanke, Konstruktioner","PE",60,0,null,null,0,""]
["Efterklaringstanke, Mek/El","PE",20,0,null,null,0,""]
["Efterklaringstanke, SRO","PE",10,0,null,null,{"$f":"IF(D131=\"\",IF(E131>0,\"Ny data\",IF(E131=\"\",\"\",0)),IF(D131=0,IF(E131=0,0,\"Ny data\"),(E131-D131)/D131))","v":0},{"$f":"IF(E131=\"\",IF(F131>0,\"Ny data\",IF(F131=\"\",\"\",0)),IF(E131=0,IF(F131=0,0,\"Ny data\"),(F131-E131)/E131))","v":""}]
["Efterbehandlingsanlæg (sandfilter), Konstruktioner","PE",60,0,null,null,0,""]
["Efterbehandlingsanlæg (sandfilter), Mek/EL","PE",20,0,null,null,0,""]
["Efterbehandlingsanlæg (sandfilter), SRO","PE",10,0,null,null,0,""]
["Renseanlæg >= 5.000 PE, Slambehandling",null,null,null,null,null,"",""]
["Forafvanding, slam, Konstruktion","PE",60,0,null,null,0,""]
["Forafvanding, slam, Mek/EL","PE",20,0,null,null,0,""]
["Forafvanding, slam, SRO","PE",10,0,null,null,0,""]
["Rådnetanke, slam, Konstruktioner","PE",60,0,null,null,0,""]
["Rådnetanke, slam, Mek/EL","PE",20,0,null,null,0,""]
["Rådnetanke, slam, SRO","PE",10,0,null,null,0,""]
["Gasdisponering, Konstruktioner","PE",60,0,null,null,0,""]
["Gasdisponering, Mek/EL","PE",20,0,null,null,0,""]
["Gasdisponering, SRO","PE",10,0,null,null,0,""]
["Gasdisponering - elproduktionsanlæg, Konstruktioner","PE",60,0,null,null,0,""]
["Gasdisponering - elproduktionsanlæg, Mek/EL","PE",20,0,null,null,0,""]
["Gasdisponering - elproduktionsanlæg, SRO","PE",10,0,null,null,0,""]
["Gasrensning - Aktivt kulfilter","m3/t",15,0,null,null,0,""]
["Gasrensning - Biologisk skrubber","m3/t",15,0,null,null,0,""]
["Opgraderingsanlæg - Membran","m3/t",15,0,null,null,0,""]
["Varmeproduktionsanlæg","m3/t",15,0,null,null,0,""]
["Slutafvanding, slam - lavteknologisk (slambede), Konstruktioner","PE",60,0,null,null,0,""]
["Slutafvanding, slam - lavteknologisk (slambede), Mek/EL","PE",20,0,null,null,0,""]
["Slutafvanding, slam - lavteknologisk (slambede), SRO","PE",10,0,null,null,0,""]
["Slutafvanding, slam - højteknologisk (centrifuger), Konstruktioner","PE",60,0,null,null,0,""]
["Slutafvanding, slam - højteknologisk (centrifuger), Mek/El","PE",20,0,null,null,0,""]
["Slutafvanding, slam - højteknologisk (centrifuger), SRO","PE",10,0,null,null,0,""]
["Renseanlæg >= 5.000 PE, Slamdisponering",null,null,null,null,null,"",""]
["Slutdisponering, slam - lavteknologisk (slammineralisering), Konstruktioner","PE",60,0,null,null,0,""]
["Slutdisponering, slam - lavteknologisk (slammineralisering), Mek/EL","PE",20,0,null,null,0,""]
["Slutdisponering, slam - lavteknologisk (slammineralisering), SRO","PE",10,0,null,null,0,""]
["Slutdisponering, slam - højteknologisk (slamtørring), Konstruktioner","PE",60,0,null,null,0,""]
["Slutdisponering, slam - højteknologisk (slamtørring), Mek/EL","PE",20,0,null,null,0,""]
["Slutdisponering, slam - højteknologisk (slamtørring), SRO","PE",10,0,null,null,0,""]
["Slutdisponering, slam - højteknologisk (slamtørring og -forbrænding), Konstruktioner","PE",60,0,null,null,0,""]
["Slutdisponering, slam - højteknologisk (slamtørring og -forbrænding), Mek/EL","PE",20,0,null,null,0,""]
["Slutdisponering, slam - højteknologisk (slamtørring og -forbrænding), SRO","PE",10,0,null,null,0,""]
["Renseanlæg 4",null,null,null,null,null,"",""]
["Mindre renseanlæg",null,null,null,null,null,"",""]
["Mindre renseanlæg < 5.000 PE","PE",40,0,null,null,0,""]
["Renseanlæg >= 5.000 PE, Vandbehandling",null,null,null,null,null,"",""]
["Indløb med riste, Konstruktioner","PE",60,0,null,null,0,""]
["Indløb med riste, Mek/EL","PE",20,0,null,null,0,""]
["Indløb med riste, SRO","PE",10,0,null,null,0,""]
["Sand- og fedtfang, Kontruktioner","PE",60,0,null,null,0,""]
["Sand- og fedtfang, Mek/EL","PE",20,0,null,null,0,""]
["Sand- og fedtfang, SRO","PE",10,0,null,null,0,""]
["Forklaring, Konstruktioner","PE",60,0,null,null,0,""]
["Forklaring, Mek/EL","PE",20,0,null,null,0,""]
["Forklaring, SRO","PE",10,0,null,null,0,""]
["Beluftningstanke, Konstruktioner","PE",60,0,null,null,0,""]
["Beluftningstanke, Mek/EL","PE",20,0,null,null,0,""]
["Beluftningstanke, SRO","PE",10,0,null,null,0,""]
["Efterklaringstanke, Konstruktioner","PE",60,0,null,null,0,""]
["Efterklaringstanke, Mek/El","PE",20,0,null,null,0,""]
["Efterklaringstanke, SRO","PE",10,0,null,null,0,""]
["Efterbehandlingsanlæg (sandfilter), Konstruktioner","PE",60,0,null,null,0,""]
["Efterbehandlingsanlæg (sandfilter), Mek/EL","PE",20,0,null,null,0,""]
["Efterbehandlingsanlæg (sandfilter), SRO","PE",10,0,null,null,0,""]
["Renseanlæg >= 5.000 PE, Slambehandling",null,null,null,null,null,"",""]
["Forafvanding, slam, Konstruktion","PE",60,0,null,null,0,""]
["Forafvanding, slam, Mek/EL","PE",20,0,null,null,0,""]
["Forafvanding, slam, SRO","PE",10,0,null,null,0,""]
["Rådnetanke, slam, Konstruktioner","PE",60,0,null,null,0,""]
["Rådnetanke, slam, Mek/EL","PE",20,0,null,null,{"$f":"IF(D195=\"\",IF(E195>0,\"Ny data\",IF(E195=\"\",\"\",0)),IF(D195=0,IF(E195=0,0,\"Ny data\"),(E195-D195)/D195))","v":0},{"$f":"IF(E195=\"\",IF(F195>0,\"Ny data\",IF(F195=\"\",\"\",0)),IF(E195=0,IF(F195=0,0,\"Ny data\"),(F195-E195)/E195))","v":""}]
["Rådnetanke, slam, SRO","PE",10,0,null,null,0,""]
["Gasdisponering, Konstruktioner","PE",60,0,null,null,0,""]
["Gasdisponering, Mek/EL","PE",20,0,null,null,0,""]
["Gasdisponering, SRO","PE",10,0,null,null,0,""]
["Gasdisponering - elproduktionsanlæg, Konstruktioner","PE",60,0,null,null,0,""]
["Gasdisponering - elproduktionsanlæg, Mek/EL","PE",20,0,null,null,0,""]
["Gasdisponering - elproduktionsanlæg, SRO","PE",10,0,null,null,0,""]
["Gasrensning - Aktivt kulfilter","m3/t",15,0,null,null,0,""]
["Gasrensning - Biologisk skrubber","m3/t",15,0,null,null,0,""]
["Opgraderingsanlæg - Membran","m3/t",15,0,null,null,0,""]
["Varmeproduktionsanlæg","m3/t",15,0,null,null,0,""]
["Slutafvanding, slam - lavteknologisk (slambede), Konstruktioner","PE",60,0,null,null,0,""]
["Slutafvanding, slam - lavteknologisk (slambede), Mek/EL","PE",20,0,null,null,0,""]
["Slutafvanding, slam - lavteknologisk (slambede), SRO","PE",10,0,null,null,0,""]
["Slutafvanding, slam - højteknologisk (centrifuger), Konstruktioner","PE",60,0,null,null,0,""]
["Slutafvanding, slam - højteknologisk (centrifuger), Mek/El","PE",20,0,null,null,0,""]
["Slutafvanding, slam - højteknologisk (centrifuger), SRO","PE",10,0,null,null,0,""]
["Renseanlæg >= 5.000 PE, Slamdisponering",null,null,null,null,null,"",""]
["Slutdisponering, slam - lavteknologisk (slammineralisering), Konstruktioner","PE",60,0,null,null,0,""]
["Slutdisponering, slam - lavteknologisk (slammineralisering), Mek/EL","PE",20,0,null,null,0,""]
["Slutdisponering, slam - lavteknologisk (slammineralisering), SRO","PE",10,0,null,null,0,""]
["Slutdisponering, slam - højteknologisk (slamtørring), Konstruktioner","PE",60,0,null,null,0,""]
["Slutdisponering, slam - højteknologisk (slamtørring), Mek/EL","PE",20,0,null,null,0,""]
["Slutdisponering, slam - højteknologisk (slamtørring), SRO","PE",10,0,null,null,0,""]
["Slutdisponering, slam - højteknologisk (slamtørring og -forbrænding), Konstruktioner","PE",60,0,null,null,0,""]
["Slutdisponering, slam - højteknologisk (slamtørring og -forbrænding), Mek/EL","PE",20,0,null,null,0,""]
["Slutdisponering, slam - højteknologisk (slamtørring og -forbrænding), SRO","PE",10,0,null,null,0,""]
["Renseanlæg 5",null,null,null,null,null,"",""]
["Mindre renseanlæg",null,null,null,null,null,"",""]
["Mindre renseanlæg < 5.000 PE","PE",40,0,null,null,0,""]
["Renseanlæg >= 5.000 PE, Vandbehandling",null,null,null,null,null,"",""]
["Indløb med riste, Konstruktioner","PE",60,0,null,null,0,""]
["Indløb med riste, Mek/EL","PE",20,0,null,null,0,""]
["Indløb med riste, SRO","PE",10,0,null,null,0,""]
["Sand- og fedtfang, Kontruktioner","PE",60,0,null,null,0,""]
["Sand- og fedtfang, Mek/EL","PE",20,0,null,null,0,""]
["Sand- og fedtfang, SRO","PE",10,0,null,null,0,""]
["Forklaring, Konstruktioner","PE",60,0,null,null,0,""]
["Forklaring, Mek/EL","PE",20,0,null,null,0,""]
["Forklaring, SRO","PE",10,0,null,null,0,""]
["Beluftningstanke, Konstruktioner","PE",60,0,null,null,0,""]
["Beluftningstanke, Mek/EL","PE",20,0,null,null,0,""]
["Beluftningstanke, SRO","PE",10,0,null,null,0,""]
["Efterklaringstanke, Konstruktioner","PE",60,0,null,null,0,""]
["Efterklaringstanke, Mek/El","PE",20,0,null,null,0,""]
["Efterklaringstanke, SRO","PE",10,0,null,null,0,""]
["Efterbehandlingsanlæg (sandfilter), Konstruktioner","PE",60,0,null,null,0,""]
["Efterbehandlingsanlæg (sandfilter), Mek/EL","PE",20,0,null,null,0,""]
["Efterbehandlingsanlæg (sandfilter), SRO","PE",10,0,null,null,0,""]
["Renseanlæg >= 5.000 PE, Slambehandling",null,null,null,null,null,"",""]
["Forafvanding, slam, Konstruktion","PE",60,0,null,null,0,""]
["Forafvanding, slam, Mek/EL","PE",20,0,null,null,0,""]
["Forafvanding, slam, SRO","PE",10,0,null,null,0,""]
["Rådnetanke, slam, Konstruktioner","PE",60,0,null,null,0,""]
["Rådnetanke, slam, Mek/EL","PE",20,0,null,null,0,""]
["Rådnetanke, slam, SRO","PE",10,0,null,null,0,""]
["Gasdisponering, Konstruktioner","PE",60,0,null,null,0,""]
["Gasdisponering, Mek/EL","PE",20,0,null,null,0,""]
["Gasdisponering, SRO","PE",10,0,null,null,0,""]
["Gasdisponering - elproduktionsanlæg, Konstruktioner","PE",60,0,null,null,0,""]
["Gasdisponering - elproduktionsanlæg, Mek/EL","PE",20,0,null,null,0,""]
["Gasdisponering - elproduktionsanlæg, SRO","PE",10,0,null,null,0,""]
["Gasrensning - Aktivt kulfilter","m3/t",15,0,null,null,0,""]
["Gasrensning - Biologisk skrubber","m3/t",15,0,null,null,{"$f":"IF(D259=\"\",IF(E259>0,\"Ny data\",IF(E259=\"\",\"\",0)),IF(D259=0,IF(E259=0,0,\"Ny data\"),(E259-D259)/D259))","v":0},{"$f":"IF(E259=\"\",IF(F259>0,\"Ny data\",IF(F259=\"\",\"\",0)),IF(E259=0,IF(F259=0,0,\"Ny data\"),(F259-E259)/E259))","v":""}]
["Opgraderingsanlæg - Membran","m3/t",15,0,null,null,0,""]
["Varmeproduktionsanlæg","m3/t",15,0,null,null,0,""]
["Slutafvanding, slam - lavteknologisk (slambede), Konstruktioner","PE",60,0,null,null,0,""]
["Slutafvanding, slam - lavteknologisk (slambede), Mek/EL","PE",20,0,null,null,0,""]
["Slutafvanding, slam - lavteknologisk (slambede), SRO","PE",10,0,null,null,0,""]
["Slutafvanding, slam - højteknologisk (centrifuger), Konstruktioner","PE",60,0,null,null,0,""]
["Slutafvanding, slam - højteknologisk (centrifuger), Mek/El","PE",20,0,null,null,0,""]
["Slutafvanding, slam - højteknologisk (centrifuger), SRO","PE",10,0,null,null,0,""]
["Renseanlæg >= 5.000 PE, Slamdisponering",null,null,null,null,null,"",""]
["Slutdisponering, slam - lavteknologisk (slammineralisering), Konstruktioner","PE",60,0,null,null,0,""]
["Slutdisponering, slam - lavteknologisk (slammineralisering), Mek/EL","PE",20,0,null,null,0,""]
["Slutdisponering, slam - lavteknologisk (slammineralisering), SRO","PE",10,0,null,null,0,""]
["Slutdisponering, slam - højteknologisk (slamtørring), Konstruktioner","PE",60,0,null,null,0,""]
["Slutdisponering, slam - højteknologisk (slamtørring), Mek/EL","PE",20,0,null,null,0,""]
["Slutdisponering, slam - højteknologisk (slamtørring), SRO","PE",10,0,null,null,0,""]
["Slutdisponering, slam - højteknologisk (slamtørring og -forbrænding), Konstruktioner","PE",60,0,null,null,0,""]
["Slutdisponering, slam - højteknologisk (slamtørring og -forbrænding), Mek/EL","PE",20,0,null,null,0,""]
["Slutdisponering, slam - højteknologisk (slamtørring og -forbrænding), SRO","PE",10,0,null,null,0,""]
["Renseanlæg 6",null,null,null,null,null,"",""]
["Mindre renseanlæg",null,null,null,null,null,"",""]
["Mindre renseanlæg < 5.000 PE","PE",40,0,null,null,0,""]
["Renseanlæg >= 5.000 PE, Vandbehandling",null,null,null,null,null,"",""]
["Indløb med riste, Konstruktioner","PE",60,0,null,null,0,""]
["Indløb med riste, Mek/EL","PE",20,0,null,null,0,""]
["Indløb med riste, SRO","PE",10,0,null,null,0,""]
["Sand- og fedtfang, Kontruktioner","PE",60,0,null,null,0,""]
["Sand- og fedtfang, Mek/EL","PE",20,0,null,null,0,""]
["Sand- og fedtfang, SRO","PE",10,0,null,null,0,""]
["Forklaring, Konstruktioner","PE",60,0,null,null,0,""]
["Forklaring, Mek/EL","PE",20,0,null,null,0,""]
["Forklaring, SRO","PE",10,0,null,null,0,""]
["Beluftningstanke, Konstruktioner","PE",60,0,null,null,0,""]
["Beluftningstanke, Mek/EL","PE",20,0,null,null,0,""]
["Beluftningstanke, SRO","PE",10,0,null,null,0,""]
["Efterklaringstanke, Konstruktioner","PE",60,0,null,null,0,""]
["Efterklaringstanke, Mek/El","PE",20,0,null,null,0,""]
["Efterklaringstanke, SRO","PE",10,0,null,null,0,""]
["Efterbehandlingsanlæg (sandfilter), Konstruktioner","PE",60,0,null,null,0,""]
["Efterbehandlingsanlæg (sandfilter), Mek/EL","PE",20,0,null,null,0,""]
["Efterbehandlingsanlæg (sandfilter), SRO","PE",10,0,null,null,0,""]
["Renseanlæg >= 5.000 PE, Slambehandling",null,null,null,null,null,"",""]
["Forafvanding, slam, Konstruktion","PE",60,0,null,null,0,""]
["Forafvanding, slam, Mek/EL","PE",20,0,null,null,0,""]
["Forafvanding, slam, SRO","PE",10,0,null,null,0,""]
["Rådnetanke, slam, Konstruktioner","PE",60,0,null,null,0,""]
["Rådnetanke, slam, Mek/EL","PE",20,0,null,null,0,""]
["Rådnetanke, slam, SRO","PE",10,0,null,null,0,""]
["Gasdisponering, Konstruktioner","PE",60,0,null,null,0,""]
["Gasdisponering, Mek/EL","PE",20,0,null,null,0,""]
["Gasdisponering, SRO","PE",10,0,null,null,0,""]
["Gasdisponering - elproduktionsanlæg, Konstruktioner","PE",60,0,null,null,0,""]
["Gasdisponering - elproduktionsanlæg, Mek/EL","PE",20,0,null,null,0,""]
["Gasdisponering - elproduktionsanlæg, SRO","PE",10,0,null,null,0,""]
["Gasrensning - Aktivt kulfilter","m3/t",15,0,null,null,0,""]
["Gasrensning - Biologisk skrubber","m3/t",15,0,null,null,0,""]
["Opgraderingsanlæg - Membran","m3/t",15,0,null,null,0,""]
["Varmeproduktionsanlæg","m3/t",15,0,null,null,0,""]
["Slutafvanding, slam - lavteknologisk (slambede), Konstruktioner","PE",60,0,null,null,0,""]
["Slutafvanding, slam - lavteknologisk (slambede), Mek/EL","PE",20,0,null,null,0,""]
["Slutafvanding, slam - lavteknologisk (slambede), SRO","PE",10,0,null,null,0,""]
["Slutafvanding, slam - højteknologisk (centrifuger), Konstruktioner","PE",60,0,null,null,0,""]
["Slutafvanding, slam - højteknologisk (centrifuger), Mek/El","PE",20,0,null,null,0,""]
["Slutafvanding, slam - højteknologisk (centrifuger), SRO","PE",10,0,null,null,0,""]
["Renseanlæg >= 5.000 PE, Slamdisponering",null,null,null,null,null,{"$f":"IF(D323=\"\",IF(E323>0,\"Ny data\",IF(E323=\"\",\"\",0)),IF(D323=0,IF(E323=0,0,\"Ny data\"),(E323-D323)/D323))","v":""},{"$f":"IF(E323=\"\",IF(F323>0,\"Ny data\",IF(F323=\"\",\"\",0)),IF(E323=0,IF(F323=0,0,\"Ny data\"),(F323-E323)/E323))","v":""}]
["Slutdisponering, slam - lavteknologisk (slammineralisering), Konstruktioner","PE",60,0,null,null,0,""]
["Slutdisponering, slam - lavteknologisk (slammineralisering), Mek/EL","PE",20,0,null,null,0,""]
["Slutdisponering, slam - lavteknologisk (slammineralisering), SRO","PE",10,0,null,null,0,""]
["Slutdisponering, slam - højteknologisk (slamtørring), Konstruktioner","PE",60,0,null,null,0,""]
["Slutdisponering, slam - højteknologisk (slamtørring), Mek/EL","PE",20,0,null,null,0,""]
["Slutdisponering, slam - højteknologisk (slamtørring), SRO","PE",10,0,null,null,0,""]
["Slutdisponering, slam - højteknologisk (slamtørring og -forbrænding), Konstruktioner","PE",60,0,null,null,0,""]
["Slutdisponering, slam - højteknologisk (slamtørring og -forbrænding), Mek/EL","PE",20,0,null,null,0,""]
["Slutdisponering, slam - højteknologisk (slamtørring og -forbrænding), SRO","PE",10,0,null,null,0,""]
["Renseanlæg 7",null,null,null,null,null,"",""]
["Mindre renseanlæg",null,null,null,null,null,"",""]
["Mindre renseanlæg < 5.000 PE","PE",40,0,null,null,0,""]
["Renseanlæg >= 5.000 PE, Vandbehandling",null,null,null,null,null,"",""]
["Indløb med riste, Konstruktioner","PE",60,0,null,null,0,""]
["Indløb med riste, Mek/EL","PE",20,0,null,null,0,""]
["Indløb med riste, SRO","PE",10,0,null,null,0,""]
["Sand- og fedtfang, Kontruktioner","PE",60,0,null,null,0,""]
["Sand- og fedtfang, Mek/EL","PE",20,0,null,null,0,""]
["Sand- og fedtfang, SRO","PE",10,0,null,null,0,""]
["Forklaring, Konstruktioner","PE",60,0,null,null,0,""]
["Forklaring, Mek/EL","PE",20,0,null,null,0,""]
["Forklaring, SRO","PE",10,0,null,null,0,""]
["Beluftningstanke, Konstruktioner","PE",60,0,null,null,0,""]
["Beluftningstanke, Mek/EL","PE",20,0,null,null,0,""]
["Beluftningstanke, SRO","PE",10,0,null,null,0,""]
["Efterklaringstanke, Konstruktioner","PE",60,0,null,null,0,""]
["Efterklaringstanke, Mek/El","PE",20,0,null,null,0,""]
["Efterklaringstanke, SRO","PE",10,0,null,null,0,""]
["Efterbehandlingsanlæg (sandfilter), Konstruktioner","PE",60,0,null,null,0,""]
["Efterbehandlingsanlæg (sandfilter), Mek/EL","PE",20,0,null,null,0,""]
["Efterbehandlingsanlæg (sandfilter), SRO","PE",10,0,null,null,0,""]
["Renseanlæg >= 5.000 PE, Slambehandling",null,null,null,null,null,"",""]
["Forafvanding, slam, Konstruktion","PE",60,0,null,null,0,""]
["Forafvanding, slam, Mek/EL","PE",20,0,null,null,0,""]
["Forafvanding, slam, SRO","PE",10,0,null,null,0,""]
["Rådnetanke, slam, Konstruktioner","PE",60,0,null,null,0,""]
["Rådnetanke, slam, Mek/EL","PE",20,0,null,null,0,""]
["Rådnetanke, slam, SRO","PE",10,0,null,null,0,""]
["Gasdisponering, Konstruktioner","PE",60,0,null,null,0,""]
["Gasdisponering, Mek/EL","PE",20,0,null,null,0,""]
["Gasdisponering, SRO","PE",10,0,null,null,0,""]
["Gasdisponering - elproduktionsanlæg, Konstruktioner","PE",60,0,null,null,0,""]
["Gasdisponering - elproduktionsanlæg, Mek/EL","PE",20,0,null,null,0,""]
["Gasdisponering - elproduktionsanlæg, SRO","PE",10,0,null,null,0,""]
["Gasrensning - Aktivt kulfilter","m3/t",15,0,null,null,0,""]
["Gasrensning - Biologisk skrubber","m3/t",15,0,null,null,0,""]
["Opgraderingsanlæg - Membran","m3/t",15,0,null,null,0,""]
["Varmeproduktionsanlæg","m3/t",15,0,null,null,0,""]
["Slutafvanding, slam - lavteknologisk (slambede), Konstruktioner","PE",60,0,null,null,0,""]
["Slutafvanding, slam - lavteknologisk (slambede), Mek/EL","PE",20,0,null,null,0,""]
["Slutafvanding, slam - lavteknologisk (slambede), SRO","PE",10,0,null,null,0,""]
["Slutafvanding, slam - højteknologisk (centrifuger), Konstruktioner","PE",60,0,null,null,0,""]
["Slutafvanding, slam - højteknologisk (centrifuger), Mek/El","PE",20,0,null,null,0,""]
["Slutafvanding, slam - højteknologisk (centrifuger), SRO","PE",10,0,null,null,0,""]
["Renseanlæg >= 5.000 PE, Slamdisponering",null,null,null,null,null,"",""]
["Slutdisponering, slam - lavteknologisk (slammineralisering), Konstruktioner","PE",60,0,null,null,0,""]
["Slutdisponering, slam - lavteknologisk (slammineralisering), Mek/EL","PE",20,0,null,null,0,""]
["Slutdisponering, slam - lavteknologisk (slammineralisering), SRO","PE",10,0,null,null,0,""]
["Slutdisponering, slam - højteknologisk (slamtørring), Konstruktioner","PE",60,0,null,null,0,""]
["Slutdisponering, slam - højteknologisk (slamtørring), Mek/EL","PE",20,0,null,null,0,""]
["Slutdisponering, slam - højteknologisk (slamtørring), SRO","PE",10,0,null,null,0,""]
["Slutdisponering, slam - højteknologisk (slamtørring og -forbrænding), Konstruktioner","PE",60,0,null,null,0,""]
["Slutdisponering, slam - højteknologisk (slamtørring og -forbrænding), Mek/EL","PE",20,0,null,null,0,""]
["Slutdisponering, slam - højteknologisk (slamtørring og -forbrænding), SRO","PE",10,0,null,null,{"$f":"IF(D387=\"\",IF(E387>0,\"Ny data\",IF(E387=\"\",\"\",0)),IF(D387=0,IF(E387=0,0,\"Ny data\"),(E387-D387)/D387))","v":0},{"$f":"IF(E387=\"\",IF(F387>0,\"Ny data\",IF(F387=\"\",\"\",0)),IF(E387=0,IF(F387=0,0,\"Ny data\"),(F387-E387)/E387))","v":""}]
["Renseanlæg 8",null,null,null,null,null,"",""]
["Mindre renseanlæg",null,null,null,null,null,"",""]
["Mindre renseanlæg < 5.000 PE","PE",40,0,null,null,0,""]
["Renseanlæg >= 5.000 PE, Vandbehandling",null,null,null,null,null,"",""]
["Indløb med riste, Konstruktioner","PE",60,0,null,null,0,""]
["Indløb med riste, Mek/EL","PE",20,0,null,null,0,""]
["Indløb med riste, SRO","PE",10,0,null,null,0,""]
["Sand- og fedtfang, Kontruktioner","PE",60,0,null,null,0,""]
["Sand- og fedtfang, Mek/EL","PE",20,0,null,null,0,""]
["Sand- og fedtfang, SRO","PE",10,0,null,null,0,""]
["Forklaring, Konstruktioner","PE",60,0,null,null,0,""]
["Forklaring, Mek/EL","PE",20,0,null,null,0,""]
["Forklaring, SRO","PE",10,0,null,null,0,""]
["Beluftningstanke, Konstruktioner","PE",60,0,null,null,0,""]
["Beluftningstanke, Mek/EL","PE",20,0,null,null,0,""]
["Beluftningstanke, SRO","PE",10,0,null,null,0,""]
["Efterklaringstanke, Konstruktioner","PE",60,0,null,null,0,""]
["Efterklaringstanke, Mek/El","PE",20,0,null,null,0,""]
["Efterklaringstanke, SRO","PE",10,0,null,null,0,""]
["Efterbehandlingsanlæg (sandfilter), Konstruktioner","PE",60,0,null,null,0,""]
["Efterbehandlingsanlæg (sandfilter), Mek/EL","PE",20,0,null,null,0,""]
["Efterbehandlingsanlæg (sandfilter), SRO","PE",10,0,null,null,0,""]
["Renseanlæg >= 5.000 PE, Slambehandling",null,null,null,null,null,"",""]
["Forafvanding, slam, Konstruktion","PE",60,0,null,null,0,""]
["Forafvanding, slam, Mek/EL","PE",20,0,null,null,0,""]
["Forafvanding, slam, SRO","PE",10,0,null,null,0,""]
["Rådnetanke, slam, Konstruktioner","PE",60,0,null,null,0,""]
["Rådnetanke, slam, Mek/EL","PE",20,0,null,null,0,""]
["Rådnetanke, slam, SRO","PE",10,0,null,null,0,""]
["Gasdisponering, Konstruktioner","PE",60,0,null,null,0,""]
["Gasdisponering, Mek/EL","PE",20,0,null,null,0,""]
["Gasdisponering, SRO","PE",10,0,null,null,0,""]
["Gasdisponering - elproduktionsanlæg, Konstruktioner","PE",60,0,null,null,0,""]
["Gasdisponering - elproduktionsanlæg, Mek/EL","PE",20,0,null,null,0,""]
["Gasdisponering - elproduktionsanlæg, SRO","PE",10,0,null,null,0,""]
["Gasrensning - Aktivt kulfilter","m3/t",15,0,null,null,0,""]
["Gasrensning - Biologisk skrubber","m3/t",15,0,null,null,0,""]
["Opgraderingsanlæg - Membran","m3/t",15,0,null,null,0,""]
["Varmeproduktionsanlæg","m3/t",15,0,null,null,0,""]
["Slutafvanding, slam - lavteknologisk (slambede), Konstruktioner","PE",60,0,null,null,0,""]
["Slutafvanding, slam - lavteknologisk (slambede), Mek/EL","PE",20,0,null,null,0,""]
["Slutafvanding, slam - lavteknologisk (slambede), SRO","PE",10,0,null,null,0,""]
["Slutafvanding, slam - højteknologisk (centrifuger), Konstruktioner","PE",60,0,null,null,0,""]
["Slutafvanding, slam - højteknologisk (centrifuger), Mek/El","PE",20,0,null,null,0,""]
["Slutafvanding, slam - højteknologisk (centrifuger), SRO","PE",10,0,null,null,0,""]
["Renseanlæg >= 5.000 PE, Slamdisponering",null,null,null,null,null,"",""]
["Slutdisponering, slam - lavteknologisk (slammineralisering), Konstruktioner","PE",60,0,null,null,0,""]
["Slutdisponering, slam - lavteknologisk (slammineralisering), Mek/EL","PE",20,0,null,null,0,""]
["Slutdisponering, slam - lavteknologisk (slammineralisering), SRO","PE",10,0,null,null,0,""]
["Slutdisponering, slam - højteknologisk (slamtørring), Konstruktioner","PE",60,0,null,null,0,""]
["Slutdisponering, slam - højteknologisk (slamtørring), Mek/EL","PE",20,0,null,null,0,""]
["Slutdisponering, slam - højteknologisk (slamtørring), SRO","PE",10,0,null,null,0,""]
["Slutdisponering, slam - højteknologisk (slamtørring og -forbrænding), Konstruktioner","PE",60,0,null,null,0,""]
["Slutdisponering, slam - højteknologisk (slamtørring og -forbrænding), Mek/EL","PE",20,0,null,null,0,""]
["Slutdisponering, slam - højteknologisk (slamtørring og -forbrænding), SRO","PE",10,0,null,null,0,""]
["Renseanlæg 9",null,null,null,null,null,"",""]
["Mindre renseanlæg",null,null,null,null,null,"",""]
["Mindre renseanlæg < 5.000 PE","PE",40,0,null,null,0,""]
["Renseanlæg >= 5.000 PE, Vandbehandling",null,null,null,null,null,"",""]
["Indløb med riste, Konstruktioner","PE",60,0,null,null,0,""]
["Indløb med riste, Mek/EL","PE",20,0,null,null,0,""]
["Indløb med riste, SRO","PE",10,0,null,null,0,""]
["Sand- og fedtfang, Kontruktioner","PE",60,0,null,null,0,""]
["Sand- og fedtfang, Mek/EL","PE",20,0,null,null,{"$f":"IF(D451=\"\",IF(E451>0,\"Ny data\",IF(E451=\"\",\"\",0)),IF(D451=0,IF(E451=0,0,\"Ny data\"),(E451-D451)/D451))","v":0},{"$f":"IF(E451=\"\",IF(F451>0,\"Ny data\",IF(F451=\"\",\"\",0)),IF(E451=0,IF(F451=0,0,\"Ny data\"),(F451-E451)/E451))","v":""}]
["Sand- og fedtfang, SRO","PE",10,0,null,null,0,""]
["Forklaring, Konstruktioner","PE",60,0,null,null,0,""]
["Forklaring, Mek/EL","PE",20,0,null,null,0,""]
["Forklaring, SRO","PE",10,0,null,null,0,""]
["Beluftningstanke, Konstruktioner","PE",60,0,null,null,0,""]
["Beluftningstanke, Mek/EL","PE",20,0,null,null,0,""]
["Beluftningstanke, SRO","PE",10,0,null,null,0,""]
["Efterklaringstanke, Konstruktioner","PE",60,0,null,null,0,""]
["Efterklaringstanke, Mek/El","PE",20,0,null,null,0,""]
["Efterklaringstanke, SRO","PE",10,0,null,null,0,""]
["Efterbehandlingsanlæg (sandfilter), Konstruktioner","PE",60,0,null,null,0,""]
["Efterbehandlingsanlæg (sandfilter), Mek/EL","PE",20,0,null,null,0,""]
["Efterbehandlingsanlæg (sandfilter), SRO","PE",10,0,null,null,0,""]
["Renseanlæg >= 5.000 PE, Slambehandling",null,null,null,null,null,"",""]
["Forafvanding, slam, Konstruktion","PE",60,0,null,null,0,""]
["Forafvanding, slam, Mek/EL","PE",20,0,null,null,0,""]
["Forafvanding, slam, SRO","PE",10,0,null,null,0,""]
["Rådnetanke, slam, Konstruktioner","PE",60,0,null,null,0,""]
["Rådnetanke, slam, Mek/EL","PE",20,0,null,null,0,""]
["Rådnetanke, slam, SRO","PE",10,0,null,null,0,""]
["Gasdisponering, Konstruktioner","PE",60,0,null,null,0,""]
["Gasdisponering, Mek/EL","PE",20,0,null,null,0,""]
["Gasdisponering, SRO","PE",10,0,null,null,0,""]
["Gasdisponering - elproduktionsanlæg, Konstruktioner","PE",60,0,null,null,0,""]
["Gasdisponering - elproduktionsanlæg, Mek/EL","PE",20,0,null,null,0,""]
["Gasdisponering - elproduktionsanlæg, SRO","PE",10,0,null,null,0,""]
["Gasrensning - Aktivt kulfilter","m3/t",15,0,null,null,0,""]
["Gasrensning - Biologisk skrubber","m3/t",15,0,null,null,0,""]
["Opgraderingsanlæg - Membran","m3/t",15,0,null,null,0,""]
["Varmeproduktionsanlæg","m3/t",15,0,null,null,0,""]
["Slutafvanding, slam - lavteknologisk (slambede), Konstruktioner","PE",60,0,null,null,0,""]
["Slutafvanding, slam - lavteknologisk (slambede), Mek/EL","PE",20,0,null,null,0,""]
["Slutafvanding, slam - lavteknologisk (slambede), SRO","PE",10,0,null,null,0,""]
["Slutafvanding, slam - højteknologisk (centrifuger), Konstruktioner","PE",60,0,null,null,0,""]
["Slutafvanding, slam - højteknologisk (centrifuger), Mek/El","PE",20,0,null,null,0,""]
["Slutafvanding, slam - højteknologisk (centrifuger), SRO","PE",10,0,null,null,0,""]
["Renseanlæg >= 5.000 PE, Slamdisponering",null,null,null,null,null,"",""]
["Slutdisponering, slam - lavteknologisk (slammineralisering), Konstruktioner","PE",60,0,null,null,0,""]
["Slutdisponering, slam - lavteknologisk (slammineralisering), Mek/EL","PE",20,0,null,null,0,""]
["Slutdisponering, slam - lavteknologisk (slammineralisering), SRO","PE",10,0,null,null,0,""]
["Slutdisponering, slam - højteknologisk (slamtørring), Konstruktioner","PE",60,0,null,null,0,""]
["Slutdisponering, slam - højteknologisk (slamtørring), Mek/EL","PE",20,0,null,null,0,""]
["Slutdisponering, slam - højteknologisk (slamtørring), SRO","PE",10,0,null,null,0,""]
["Slutdisponering, slam - højteknologisk (slamtørring og -forbrænding), Konstruktioner","PE",60,0,null,null,0,""]
["Slutdisponering, slam - højteknologisk (slamtørring og -forbrænding), Mek/EL","PE",20,0,null,null,0,""]
["Slutdisponering, slam - højteknologisk (slamtørring og -forbrænding), SRO","PE",10,0,null,null,0,""]
["Renseanlæg 10",null,null,null,null,null,"",""]
["Mindre renseanlæg",null,null,null,null,null,"",""]
["Mindre renseanlæg < 5.000 PE","PE",40,0,null,null,0,""]
["Renseanlæg >= 5.000 PE, Vandbehandling",null,null,null,null,null,"",""]
["Indløb med riste, Konstruktioner","PE",60,0,null,null,0,""]
["Indløb med riste, Mek/EL","PE",20,0,null,null,0,""]
["Indløb med riste, SRO","PE",10,0,null,null,0,""]
["Sand- og fedtfang, Kontruktioner","PE",60,0,null,null,0,""]
["Sand- og fedtfang, Mek/EL","PE",20,0,null,null,0,""]
["Sand- og fedtfang, SRO","PE",10,0,null,null,0,""]
["Forklaring, Konstruktioner","PE",60,0,null,null,0,""]
["Forklaring, Mek/EL","PE",20,0,null,null,0,""]
["Forklaring, SRO","PE",10,0,null,null,0,""]
["Beluftningstanke, Konstruktioner","PE",60,0,null,null,0,""]
["Beluftningstanke, Mek/EL","PE",20,0,null,null,0,""]
["Beluftningstanke, SRO","PE",10,0,null,null,0,""]
["Efterklaringstanke, Konstruktioner","PE",60,0,null,null,0,""]
["Efterklaringstanke, Mek/El","PE",20,0,null,null,{"$f":"IF(D515=\"\",IF(E515>0,\"Ny data\",IF(E515=\"\",\"\",0)),IF(D515=0,IF(E515=0,0,\"Ny data\"),(E515-D515)/D515))","v":0},{"$f":"IF(E515=\"\",IF(F515>0,\"Ny data\",IF(F515=\"\",\"\",0)),IF(E515=0,IF(F515=0,0,\"Ny data\"),(F515-E515)/E515))","v":""}]
["Efterklaringstanke, SRO","PE",10,0,null,null,0,""]
["Efterbehandlingsanlæg (sandfilter), Konstruktioner","PE",60,0,null,null,0,""]
["Efterbehandlingsanlæg (sandfilter), Mek/EL","PE",20,0,null,null,0,""]
["Efterbehandlingsanlæg (sandfilter), SRO","PE",10,0,null,null,0,""]
["Renseanlæg >= 5.000 PE, Slambehandling",null,null,null,null,null,"",""]
["Forafvanding, slam, Konstruktion","PE",60,0,null,null,0,""]
["Forafvanding, slam, Mek/EL","PE",20,0,null,null,0,""]
["Forafvanding, slam, SRO","PE",10,0,null,null,0,""]
["Rådnetanke, slam, Konstruktioner","PE",60,0,null,null,0,""]
["Rådnetanke, slam, Mek/EL","PE",20,0,null,null,0,""]
["Rådnetanke, slam, SRO","PE",10,0,null,null,0,""]
["Gasdisponering, Konstruktioner","PE",60,0,null,null,0,""]
["Gasdisponering, Mek/EL","PE",20,0,null,null,0,""]
["Gasdisponering, SRO","PE",10,0,null,null,0,""]
["Gasdisponering - elproduktionsanlæg, Konstruktioner","PE",60,0,null,null,0,""]
["Gasdisponering - elproduktionsanlæg, Mek/EL","PE",20,0,null,null,0,""]
["Gasdisponering - elproduktionsanlæg, SRO","PE",10,0,null,null,0,""]
["Gasrensning - Aktivt kulfilter","m3/t",15,0,null,null,0,""]
["Gasrensning - Biologisk skrubber","m3/t",15,0,null,null,0,""]
["Opgraderingsanlæg - Membran","m3/t",15,0,null,null,0,""]
["Varmeproduktionsanlæg","m3/t",15,0,null,null,0,""]
["Slutafvanding, slam - lavteknologisk (slambede), Konstruktioner","PE",60,0,null,null,0,""]
["Slutafvanding, slam - lavteknologisk (slambede), Mek/EL","PE",20,0,null,null,0,""]
["Slutafvanding, slam - lavteknologisk (slambede), SRO","PE",10,0,null,null,0,""]
["Slutafvanding, slam - højteknologisk (centrifuger), Konstruktioner","PE",60,0,null,null,0,""]
["Slutafvanding, slam - højteknologisk (centrifuger), Mek/El","PE",20,0,null,null,0,""]
["Slutafvanding, slam - højteknologisk (centrifuger), SRO","PE",10,0,null,null,0,""]
["Renseanlæg >= 5.000 PE, Slamdisponering",null,null,null,null,null,"",""]
["Slutdisponering, slam - lavteknologisk (slammineralisering), Konstruktioner","PE",60,0,null,null,0,""]
["Slutdisponering, slam - lavteknologisk (slammineralisering), Mek/EL","PE",20,0,null,null,0,""]
["Slutdisponering, slam - lavteknologisk (slammineralisering), SRO","PE",10,0,null,null,0,""]
["Slutdisponering, slam - højteknologisk (slamtørring), Konstruktioner","PE",60,0,null,null,0,""]
["Slutdisponering, slam - højteknologisk (slamtørring), Mek/EL","PE",20,0,null,null,0,""]
["Slutdisponering, slam - højteknologisk (slamtørring), SRO","PE",10,0,null,null,0,""]
["Slutdisponering, slam - højteknologisk (slamtørring og -forbrænding), Konstruktioner","PE",60,0,null,null,0,""]
["Slutdisponering, slam - højteknologisk (slamtørring og -forbrænding), Mek/EL","PE",20,0,null,null,0,""]
["Slutdisponering, slam - højteknologisk (slamtørring og -forbrænding), SRO","PE",20,0,null,null,0,""]

{"sheet":"Distributionsanlæg","index":1,"n_rows":318,"n_cols":9,"rows_kept":318,"cut":false,"hidden":false,"merged":[[0,0,1,0],[0,1,1,1],[0,2,1,2],[0,3,1,3],[0,8,1,8],[0,4,1,4],[0,5,1,5],[0,6,1,6],[0,7,1,7]]}
["Distributionsanlæg","Enhed","Standard-levetid","Samlet mængde per 31/12-2022","Samlet mængde per 31/12-2023","Samlet mængde per 31/12-2024","Afvigelse 2022-2023","Afvigelse 2023-2024","Bemærkninger"]
[]
["Ledningsnet - Land",null,null,null,null,null,{"$f":"IF(D3=\"\",IF(E3>0,\"Ny data\",IF(E3=\"\",\"\",0)),IF(D3=0,IF(E3=0,0,\"Ny data\"),(E3-D3)/D3))","v":""},{"$f":"IF(E3=\"\",IF(F3>0,\"Ny data\",IF(F3=\"\",\"\",0)),IF(E3=0,IF(F3=0,0,\"Ny data\"),(F3-E3)/E3))","v":""}]
["Ledningsnet ≤ Ø 200 mm ","meter",75,229182,{"$f":"220762+469","v":221231},{"$f":"220802+469","v":221271},-3.4692951453430022E-2,1.8080648733676563E-4]
["Ø 200 mm < Ledningsnet ≤ Ø 500 mm ","meter",75,46739,{"$f":"49454+105","v":49559},{"$f":"49454+105","v":49559},6.0335052097819808E-2,0]
["Ø 500 mm < Ledningsnet ≤ Ø 800 mm","meter",75,6223,7187,7187,0.15490920777759923,0]
["Ø 800 mm < Ledningsnet ≤ Ø 1000 mm","meter",75,287,326,326,0.13588850174216027,0]
["Ø 1000 mm < Ledningsnet ≤ Ø 1200 mm","meter",75,0,352,352,"Ny data",0,"Forbedret data"]
["Ø 1200 mm < Ledningsnet ≤ Ø 1600 mm","meter",75,185,665,665,2.5945945945945947,0,"Forbedret data"]
["Ledningsnet > Ø 1600 mm (rørbassiner og transportledninger)","meter",75,0,59,59,"Ny data",0,"Forbedret data"]
["Strømpeforing ≤ Ø 200 mm","meter",50,3308,3294,3432,-4.2321644498186217E-3,4.1894353369763208E-2]
["Strømpeforing Ø 200 mm < Ledningsnet ≤ Ø 500 mm","meter",50,1928,1951,1951,1.1929460580912862E-2,0]
["Strømpeforing Ø 500 mm < Ledningsnet ≤ Ø 800 mm","meter",50,194,329,329,0.69587628865979378,0,"\"Fejl 40\" i 2022"]
["Strømpeforing Ø 800 mm < Ledningsnet ≤ Ø 1000 mm","meter",50,0,0,0,0,0]
["Strømpeforing Ø 1000 mm < Ledningsnet ≤ Ø 1200 mm","meter",50,0,0,0,0,0]
["Strømpeforing Ø 1200 mm < Ledningsnet ≤ Ø 1600 mm","meter",50,0,0,0,0,0]
["Ledningsnet - By",null,null,null,null,null,"",""]
["Ledningsnet ≤ Ø 200 mm ","meter",75,246587,{"$f":"232702+1995","v":234697},{"$f":"232764+1995","v":234759},-4.8218275902622607E-2,2.6417039842861219E-4]
["Ø 200 mm < Ledningsnet ≤ Ø 500 mm ","meter",75,93860,{"$f":"102417+878","v":103295},{"$f":"102417+878","v":103295},0.10052205412316216,0]
["Ø 500 mm < Ledningsnet ≤ Ø 800 mm","meter",75,14799,15900,15900,7.4396918710723695E-2,0]
["Ø 800 mm < Ledningsnet ≤ Ø 1000 mm","meter",75,1769,1947,1947,0.10062182023742228,0]
["Ø 1000 mm < Ledningsnet ≤ Ø 1200 mm","meter",75,690,764,764,0.1072463768115942,0]
["Ø 1200 mm < Ledningsnet ≤ Ø 1600 mm","meter",75,1822,1808,1808,-7.6838638858397366E-3,0]
["Ledningsnet > Ø 1600 mm (rørbassiner og transportledninger)","meter",75,364,364,364,0,0]
["Strømpeforing ≤ Ø 200 mm","meter",50,16367,17868,17896,9.1708926498441992E-2,1.5670472352809493E-3]
["Strømpeforing Ø 200 mm < Ledningsnet ≤ Ø 500 mm","meter",50,14156,14319,14421,1.1514552133371009E-2,7.1234024722396814E-3]
["Strømpeforing Ø 500 mm < Ledningsnet ≤ Ø 800 mm","meter",50,1397,1478,1485,5.7981388690050109E-2,4.736129905277402E-3]
["Strømpeforing Ø 800 mm < Ledningsnet ≤ Ø 1000 mm","meter",50,0,0,0,0,0]
["Strømpeforing Ø 1000 mm < Ledningsnet ≤ Ø 1200 mm","meter",50,0,0,0,0,0]
["Strømpeforing Ø 1200 mm < Ledningsnet ≤ Ø 1600 mm","meter",50,0,0,0,0,0]
["Ledningsnet - City",null,null,null,null,null,"",""]
["Ledningsnet ≤ Ø 200 mm ","meter",75,4836,{"$f":"4532+3","v":4535},{"$f":"4532+3","v":4535},-6.2241521918941271E-2,0]
["Ø 200 mm < Ledningsnet ≤ Ø 500 mm ","meter",75,3133,{"$f":"3207+1","v":3208},{"$f":"3207+1","v":3208},2.3938716884774978E-2,0]
["Ø 500 mm < Ledningsnet ≤ Ø 800 mm","meter",75,205,205,205,0,0]
["Ø 800 mm < Ledningsnet ≤ Ø 1000 mm","meter",75,63,63,63,0,0]
["Ø 1000 mm < Ledningsnet ≤ Ø 1200 mm","meter",75,0,0,0,0,0]
["Ø 1200 mm < Ledningsnet ≤ Ø 1600 mm","meter",75,0,0,0,0,0]
["Ledningsnet > Ø 1600 mm (rørbassiner og transportledninger)","meter",75,0,0,0,0,0]
["Strømpeforing ≤ Ø 200 mm","meter",50,533,469,469,-0.1200750469043152,0]
["Strømpeforing Ø 200 mm < Ledningsnet ≤ Ø 500 mm","meter",50,1258,1318,1318,4.7694753577106522E-2,0]
["Strømpeforing Ø 500 mm < Ledningsnet ≤ Ø 800 mm","meter",50,42,43,43,2.3809523809523808E-2,0]
["Strømpeforing Ø 800 mm < Ledningsnet ≤ Ø 1000 mm","meter",50,0,0,0,0,0]
["Strømpeforing Ø 1000 mm < Ledningsnet ≤ Ø 1200 mm","meter",50,0,0,0,0,0]
["Strømpeforing Ø 1200 mm < Ledningsnet ≤ Ø 1600 mm","meter",50,0,0,0,0,0]
["Ledningsnet - Indre city",null,null,null,null,null,"",""]
["Ledningsnet ≤ Ø 200 mm ","meter",75,0,0,0,0,0]
["Ø 200 mm < Ledningsnet ≤ Ø 500 mm ","meter",75,0,0,0,0,0]
["Ø 500 mm < Ledningsnet ≤ Ø 800 mm","meter",75,0,0,0,0,0]
["Ø 800 mm < Ledningsnet ≤ Ø 1000 mm","meter",75,0,0,0,0,0]
["Ø 1000 mm < Ledningsnet ≤ Ø 1200 mm","meter",75,0,0,0,0,0]
["Ø 1200 mm < Ledningsnet ≤ Ø 1600 mm","meter",75,0,0,0,0,0]
["Ledningsnet > Ø 1600 mm (rørbassiner og transportledninger)","meter",75,0,0,0,0,0]
["Strømpeforing ≤ Ø 200 mm","meter",50,0,0,0,0,0]
["Strømpeforing Ø 200 mm < Ledningsnet ≤ Ø 500 mm","meter",50,0,0,0,0,0]
["Strømpeforing Ø 500 mm < Ledningsnet ≤ Ø 800 mm","meter",50,0,0,0,0,0]
["Strømpeforing Ø 800 mm < Ledningsnet ≤ Ø 1000 mm","meter",50,0,0,0,0,0]
["Strømpeforing Ø 1000 mm < Ledningsnet ≤ Ø 1200 mm","meter",50,0,0,0,0,0]
["Strømpeforing Ø 1200 mm < Ledningsnet ≤ Ø 1600 mm","meter",50,0,0,0,0,0]
["Brønde og stik, ledningsnet - Land",null,null,null,null,null,"",""]
["Brønde","stk.",75,3196,1551,1551,-0.51470588235294112,0,"Filtreret anderledes"]
["Stik","stk.",75,4595,4633,4638,8.2698585418933615E-3,1.0792143319663286E-3]
["Brønde og stik, ledningsnet - By",null,null,null,null,null,"",""]
["Brønde","stk.",75,7572,5880,5883,-0.22345483359746435,5.1020408163265311E-4,"Filtreret anderledes"]
["Stik","stk.",75,10286,10619,10624,3.237410071942446E-2,4.7085412939071476E-4]
["Brønde og stik, ledningsnet - City",null,null,null,null,null,"",""]
["Brønde","stk.",75,225,90,90,-0.6,0,"Filtreret anderledes"]
["Stik","stk.",75,432,426,426,{"$f":"IF(D67=\"\",IF(E67>0,\"Ny data\",IF(E67=\"\",\"\",0)),IF(D67=0,IF(E67=0,0,\"Ny data\"),(E67-D67)/D67))","v":-1.3888888888888888E-2},{"$f":"IF(E67=\"\",IF(F67>0,\"Ny data\",IF(F67=\"\",\"\",0)),IF(E67=0,IF(F67=0,0,\"Ny data\"),(F67-E67)/E67))","v":0}]
["Brønde og stik, ledningsnet - Indre city",null,null,null,null,null,"",""]
["Brønde","stk.",75,0,0,0,0,0]
["Stik","stk.",75,0,0,0,0,0]
["Små pumpestationer (<100 l/s) inkl. SRO-anlæg - Land",null,null,null,null,null,"",""]
["Tryksatte minipumpestationer (husstandssystemer)","stk.",30,3,3,3,0,0]
["Pumpestationer i brønde (< 6,25 m2), Konstruktioner","stk.",50,439,471,471,7.289293849658314E-2,0]
["Pumpestationer i brønde (< 6,25 m2), Mek/EL","stk.",20,439,{"$f":"471+95","v":566},{"$f":"471+95","v":566},0.28929384965831434,0,"Data valideret flere pumper i pumpestation"]
["Pumpestationer i brønde (< 6,25 m2), SRO","stk.",10,439,471,471,7.289293849658314E-2,0]
["Pumpestationer m. overbygning (< 20 m2), Konstruktioner","stk.",50,0,0,0,0,0]
["Pumpestationer m. overbygning (< 20 m2), Mek/EL","stk.",20,0,0,0,0,0]
["Pumpestationer m. overbygning (< 20 m2), SRO","stk.",10,0,0,0,0,0]
["Pumpestationer i underjordiske bygværker (<50 m2), Konstruktioner","stk.",50,0,0,0,0,0]
["Pumpestationer i underjordiske bygværker (<50 m2), Mek/El","stk.",20,0,0,0,0,0]
["Pumpestationer i underjordiske bygværker (<50 m2), SRO","stk.",10,0,0,0,0,0]
["Små pumpestationer (<100 l/s) inkl. SRO-anlæg - By",null,null,null,null,null,"",""]
["Tryksatte minipumpestationer (husstandssystemer)","stk.",30,0,2,2,"Ny data",0,"Forbedret data"]
["Pumpestationer i brønde (< 6,25 m2), Konstruktioner","stk.",50,117,123,123,5.128205128205128E-2,0]
["Pumpestationer i brønde (< 6,25 m2), Mek/EL","stk.",20,117,{"$f":"123+95","v":218},{"$f":"123+95","v":218},0.86324786324786329,0,"Data valideret, flere pumper i pumpestation"]
["Pumpestationer i brønde (< 6,25 m2), SRO","stk.",10,117,123,123,5.128205128205128E-2,0]
["Pumpestationer m. overbygning (< 20 m2), Konstruktioner","stk.",50,0,0,0,0,0]
["Pumpestationer m. overbygning (< 20 m2), Mek/EL","stk.",20,0,0,0,0,0]
["Pumpestationer m. overbygning (< 20 m2), SRO","stk.",10,0,0,0,0,0]
["Pumpestationer i underjordiske bygværker (<50 m2), Konstruktioner","stk.",50,10,{"$f":"10-5","v":5},5,-0.5,0,"Det er i virkelighdeden store pumpestationer, hvorfor de er flyttet"]
["Pumpestationer i underjordiske bygværker (<50 m2), Mek/El","stk.",20,10,10,10,0,0,"Data valideret, flere pumper i pumpestation"]
["Pumpestationer i underjordiske bygværker (<50 m2), SRO","stk.",10,10,5,5,-0.5,0,"Det er i virkelighdeden store pumpestationer, hvorfor de er flyttet"]
["Små pumpestationer (<100 l/s) inkl. SRO-anlæg - City",null,null,null,null,null,"",""]
["Tryksatte minipumpestationer (husstandssystemer)","stk.",30,0,0,0,0,0]
["Pumpestationer i brønde (< 6,25 m2), Konstruktioner","stk.",50,0,0,0,0,0]
["Pumpestationer i brønde (< 6,25 m2), Mek/EL","stk.",20,0,0,0,0,0]
["Pumpestationer i brønde (< 6,25 m2), SRO","stk.",10,0,0,0,0,0]
["Pumpestationer m. overbygning (< 20 m2), Konstruktioner","stk.",50,0,0,0,0,0]
["Pumpestationer m. overbygning (< 20 m2), Mek/EL","stk.",20,0,0,0,0,0]
["Pumpestationer m. overbygning (< 20 m2), SRO","stk.",10,0,0,0,0,0]
["Pumpestationer i underjordiske bygværker (<50 m2), Konstruktioner","stk.",50,0,0,0,0,0]
["Pumpestationer i underjordiske bygværker (<50 m2), Mek/El","stk.",20,0,0,0,0,0]
["Pumpestationer i underjordiske bygværker (<50 m2), SRO","stk.",10,0,0,0,0,0]
["Små pumpestationer (<100 l/s) inkl. SRO-anlæg - Indre city",null,null,null,null,null,"",""]
["Tryksatte minipumpestationer (husstandssystemer)","stk.",30,0,0,0,0,0]
["Pumpestationer i brønde (< 6,25 m2), Konstruktioner","stk.",50,0,0,0,0,0]
["Pumpestationer i brønde (< 6,25 m2), Mek/EL","stk.",20,0,0,0,0,0]
["Pumpestationer i brønde (< 6,25 m2), SRO","stk.",10,0,0,0,0,0]
["Pumpestationer m. overbygning (< 20 m2), Konstruktioner","stk.",50,0,0,0,0,0]
["Pumpestationer m. overbygning (< 20 m2), Mek/EL","stk.",20,0,0,0,0,0]
["Pumpestationer m. overbygning (< 20 m2), SRO","stk.",10,0,0,0,0,0]
["Pumpestationer i underjordiske bygværker (<50 m2), Konstruktioner","stk.",50,0,0,0,0,0]
["Pumpestationer i underjordiske bygværker (<50 m2), Mek/El","stk.",20,0,0,0,0,0]
["Pumpestationer i underjordiske bygværker (<50 m2), SRO","stk.",10,0,0,0,0,0]
["Store pumpestationer: inkl. SRO-anlæg - Land",null,null,null,null,null,"",""]
["Kælder","m2",75,0,0,0,0,0]
["Pumpeinstallation Miljøklasse A (100-300 l/s) - Mek/EL","stk.",20,0,0,0,0,0]
["Pumpeinstallation Miljøklasse A (100-300 l/s) - SRO","stk.",10,0,0,0,0,0]
["Pumpeinstallation Miljøklasse A (300-600 l/s) - Mek/EL","stk.",20,0,0,0,0,0]
["Pumpeinstallation Miljøklasse A (300-600 l/s) - SRO","stk.",10,0,0,0,0,0]
["Pumpeinstallation Miljøklasse A (600-1.000 l/s) - Mek/EL","stk.",20,0,0,0,0,0]
["Pumpeinstallation Miljøklasse A (600-1.000 l/s) - SRO","stk.",10,0,0,0,0,0]
["Pumpeinstallation Miljøklasse A (1.000-1.500 l/s) - Mek/EL","stk.",20,0,0,0,0,0]
["Pumpeinstallation Miljøklasse A (1.000-1.500 l/s) - SRO","stk.",10,0,0,0,0,0]
["Pumpeinstallation Miljøklasse B (100-300 l/s) - Mek/EL","stk.",20,0,0,0,0,0]
["Pumpeinstallation Miljøklasse B (100-300 l/s) - SRO","stk.",10,0,0,0,0,0]
["Pumpeinstallation Miljøklasse B (300-600 l/s) - Mek/EL","stk.",20,0,0,0,0,0]
["Pumpeinstallation Miljøklasse B (300-600 l/s) - SRO","stk.",10,0,0,0,0,0]
["Pumpeinstallation Miljøklasse B (600-1.000 l/s) - Mek/EL","stk.",20,0,0,0,0,0]
["Pumpeinstallation Miljøklasse B (600-1.000 l/s) - SRO","stk.",10,0,0,0,0,0]
["Pumpeinstallation Miljøklasse B (1.000-1.500 l/s) - Mek/EL","stk.",20,0,0,0,{"$f":"IF(D131=\"\",IF(E131>0,\"Ny data\",IF(E131=\"\",\"\",0)),IF(D131=0,IF(E131=0,0,\"Ny data\"),(E131-D131)/D131))","v":0},{"$f":"IF(E131=\"\",IF(F131>0,\"Ny data\",IF(F131=\"\",\"\",0)),IF(E131=0,IF(F131=0,0,\"Ny data\"),(F131-E131)/E131))","v":0}]
["Pumpeinstallation Miljøklasse B (1.000-1.500 l/s) - SRO","stk.",10,0,0,0,0,0]
["Overbygning","m2",75,0,0,0,0,0]
["Store pumpestationer: inkl. SRO-anlæg - By",null,null,null,null,null,"",""]
["Kælder","m2",75,0,320,320,"Ny data",0,"Data valideret "]
["Pumpeinstallation Miljøklasse A (100-300 l/s) - Mek/EL","stk.",20,0,5,5,"Ny data",0,"Data valideret"]
["Pumpeinstallation Miljøklasse A (100-300 l/s) - SRO","stk.",10,0,5,5,"Ny data",0,"Data valideret"]
["Pumpeinstallation Miljøklasse A (300-600 l/s) - Mek/EL","stk.",20,0,0,0,0,0]
["Pumpeinstallation Miljøklasse A (300-600 l/s) - SRO","stk.",10,0,0,0,0,0]
["Pumpeinstallation Miljøklasse A (600-1.000 l/s) - Mek/EL","stk.",20,0,0,0,0,0]
["Pumpeinstallation Miljøklasse A (600-1.000 l/s) - SRO","stk.",10,0,0,0,0,0]
["Pumpeinstallation Miljøklasse A (1.000-1.500 l/s) - Mek/EL","stk.",20,0,0,0,0,0]
["Pumpeinstallation Miljøklasse A (1.000-1.500 l/s) - SRO","stk.",10,0,0,0,0,0]
["Pumpeinstallation Miljøklasse B (100-300 l/s) - Mek/EL","stk.",20,0,0,0,0,0]
["Pumpeinstallation Miljøklasse B (100-300 l/s) - SRO","stk.",10,0,0,0,0,0]
["Pumpeinstallation Miljøklasse B (300-600 l/s) - Mek/EL","stk.",20,0,0,0,0,0]
["Pumpeinstallation Miljøklasse B (300-600 l/s) - SRO","stk.",10,0,0,0,0,0]
["Pumpeinstallation Miljøklasse B (600-1.000 l/s) - Mek/EL","stk.",20,0,0,0,0,0]
["Pumpeinstallation Miljøklasse B (600-1.000 l/s) - SRO","stk.",10,0,0,0,0,0]
["Pumpeinstallation Miljøklasse B (1.000-1.500 l/s) - Mek/EL","stk.",20,0,0,0,0,0]
["Pumpeinstallation Miljøklasse B (1.000-1.500 l/s) - SRO","stk.",10,0,0,0,0,0]
["Overbygning ","m2",75,0,320,320,"Ny data",0,"Data valideret"]
["Store pumpestationer: inkl. SRO-anlæg - City",null,null,null,null,null,"",""]
["Kælder","m2",75,0,0,0,0,0]
["Pumpeinstallation Miljøklasse A (100-300 l/s) - Mek/EL","stk.",20,0,0,0,0,0]
["Pumpeinstallation Miljøklasse A (100-300 l/s) - SRO","stk.",10,0,0,0,0,0]
["Pumpeinstallation Miljøklasse A (300-600 l/s) - Mek/EL","stk.",20,0,0,0,0,0]
["Pumpeinstallation Miljøklasse A (300-600 l/s) - SRO","stk.",10,0,0,0,0,0]
["Pumpeinstallation Miljøklasse A (600-1.000 l/s) - Mek/EL","stk.",20,0,0,0,0,0]
["Pumpeinstallation Miljøklasse A (600-1.000 l/s) - SRO","stk.",10,0,0,0,0,0]
["Pumpeinstallation Miljøklasse A (1.000-1.500 l/s) - Mek/EL","stk.",20,0,0,0,0,0]
["Pumpeinstallation Miljøklasse A (1.000-1.500 l/s) - SRO","stk.",10,0,0,0,0,0]
["Pumpeinstallation Miljøklasse B (100-300 l/s) - Mek/EL","stk.",20,0,0,0,0,0]
["Pumpeinstallation Miljøklasse B (100-300 l/s) - SRO","stk.",10,0,0,0,0,0]
["Pumpeinstallation Miljøklasse B (300-600 l/s) - Mek/EL","stk.",20,0,0,0,0,0]
["Pumpeinstallation Miljøklasse B (300-600 l/s) - SRO","stk.",10,0,0,0,0,0]
["Pumpeinstallation Miljøklasse B (600-1.000 l/s) - Mek/EL","stk.",20,0,0,0,0,0]
["Pumpeinstallation Miljøklasse B (600-1.000 l/s) - SRO","stk.",10,0,0,0,0,0]
["Pumpeinstallation Miljøklasse B (1.000-1.500 l/s) - Mek/EL","stk.",20,0,0,0,0,0]
["Pumpeinstallation Miljøklasse B (1.000-1.500 l/s) - SRO","stk.",10,0,0,0,0,0]
["Overbygning ","m2",75,0,0,0,0,0]
["Store pumpestationer: inkl. SRO-anlæg - Indre city",null,null,null,null,null,"",""]
["Kælder","m2",75,0,0,0,0,0]
["Pumpeinstallation Miljøklasse A (100-300 l/s) - Mek/EL","stk.",20,0,0,0,0,0]
["Pumpeinstallation Miljøklasse A (100-300 l/s) - SRO","stk.",10,0,0,0,0,0]
["Pumpeinstallation Miljøklasse A (300-600 l/s) - Mek/EL","stk.",20,0,0,0,0,0]
["Pumpeinstallation Miljøklasse A (300-600 l/s) - SRO","stk.",10,0,0,0,0,0]
["Pumpeinstallation Miljøklasse A (600-1.000 l/s) - Mek/EL","stk.",20,0,0,0,0,0]
["Pumpeinstallation Miljøklasse A (600-1.000 l/s) - SRO","stk.",10,0,0,0,0,0]
["Pumpeinstallation Miljøklasse A (1.000-1.500 l/s) - Mek/EL","stk.",20,0,0,0,0,0]
["Pumpeinstallation Miljøklasse A (1.000-1.500 l/s) - SRO","stk.",10,0,0,0,0,0]
["Pumpeinstallation Miljøklasse B (100-300 l/s) - Mek/EL","stk.",20,0,0,0,0,0]
["Pumpeinstallation Miljøklasse B (100-300 l/s) - SRO","stk.",10,0,0,0,0,0]
["Pumpeinstallation Miljøklasse B (300-600 l/s) - Mek/EL","stk.",20,0,0,0,0,0]
["Pumpeinstallation Miljøklasse B (300-600 l/s) - SRO","stk.",10,0,0,0,0,0]
["Pumpeinstallation Miljøklasse B (600-1.000 l/s) - Mek/EL","stk.",20,0,0,0,0,0]
["Pumpeinstallation Miljøklasse B (600-1.000 l/s) - SRO","stk.",10,0,0,0,0,0]
["Pumpeinstallation Miljøklasse B (1.000-1.500 l/s) - Mek/EL","stk.",20,0,0,0,0,0]
["Pumpeinstallation Miljøklasse B (1.000-1.500 l/s) - SRO","stk.",10,0,0,0,0,0]
["Overbygning","m2",75,0,0,0,0,0]
["Overløbsbygværker - Land",null,null,null,null,null,"",""]
["Kælder (< 7 m2) ","stk.",75,0,12,12,"Ny data",0,"Fejl at der ikke har været kælder tidligere"]
["Kælder (7 - 20 m2) ","m2",75,0,0,0,0,0]
["Kælder (20 - 30 m2)","m2",75,0,0,0,0,0]
["Installationer (mindre end 7 m2)","stk.",20,17,12,12,{"$f":"IF(D195=\"\",IF(E195>0,\"Ny data\",IF(E195=\"\",\"\",0)),IF(D195=0,IF(E195=0,0,\"Ny data\"),(E195-D195)/D195))","v":-0.29411764705882354},{"$f":"IF(E195=\"\",IF(F195>0,\"Ny data\",IF(F195=\"\",\"\",0)),IF(E195=0,IF(F195=0,0,\"Ny data\"),(F195-E195)/E195))","v":0},"5 er flyttet over til By"]
["Installationer, Miljøklasse A. (7-20 m2) - Mek/EL","stk.",20,1,1,1,0,0]
["Installationer, Miljøklasse A. (7-20 m2) - SRO","stk.",10,0,12,12,"Ny data",0,"Fejl at der ikke har været SRO tidligere"]
["Installationer, Miljøklasse A. (20-30 m2) - Mek/EL","stk.",20,0,0,0,0,0]
["Installationer, Miljøklasse A. (20-30 m2) - SRO","stk.",10,0,0,0,0,0]
["Installationer, Miljøklasse B. (7-20 m2) - Mek/EL","stk.",20,0,0,0,0,0]
["Installationer, Miljøklasse B. (7-20 m2) - SRO","stk.",10,0,0,0,0,0]
["Installationer, Miljøklasse B. (20-30 m2) - Mek/EL","stk.",20,0,0,0,0,0]
["Installationer, Miljøklasse B. (20-30 m2) - SRO","stk.",10,0,0,0,0,0]
["Overbygning","stk.",75,0,0,0,0,0]
["Overløbsbygværker - By",null,null,null,null,null,"",""]
["Kælder (< 7 m2) ","stk.",75,0,43,43,"Ny data",0,"Fejl at der ikke har været kælder tidligere"]
["Kælder (7 - 20 m2) ","m2",75,0,0,0,0,0]
["Kælder (20 - 30 m2)","m2",75,0,0,0,0,0]
["Installationer (mindre end 7 m2)","stk.",20,38,43,43,0.13157894736842105,0,"5 er flyttet over fra Land"]
["Installationer, Miljøklasse A. (7-20 m2) - Mek/EL","stk.",20,0,0,0,0,0]
["Installationer, Miljøklasse A. (7-20 m2) - SRO","stk.",10,0,{"$f":"27-12","v":15},{"$f":"27-12","v":15},"Ny data",0,"Fejl at der ikke har været SRO tidligere"]
["Installationer, Miljøklasse A. (20-30 m2) - Mek/EL","stk.",20,0,0,0,0,0]
["Installationer, Miljøklasse A. (20-30 m2) - SRO","stk.",10,0,0,0,0,0]
["Installationer, Miljøklasse B. (7-20 m2) - Mek/EL","stk.",20,0,0,0,0,0]
["Installationer, Miljøklasse B. (7-20 m2) - SRO","stk.",10,0,0,0,0,0]
["Installationer, Miljøklasse B. (20-30 m2) - Mek/EL","stk.",20,0,0,0,0,0]
["Installationer, Miljøklasse B. (20-30 m2) - SRO","stk.",10,0,0,0,0,0]
["Overbygning","stk.",75,0,0,0,0,0]
["Overløbsbygværker - City",null,null,null,null,null,"",""]
["Kælder (< 7 m2) ","stk.",75,0,1,1,"Ny data",0,"Fejl at der ikke har været kælder tidligere"]
["Kælder (7 - 20 m2) ","m2",75,0,0,0,0,0]
["Kælder (20 - 30 m2)","m2",75,0,0,0,0,0]
["Installationer (mindre end 7 m2)","stk.",20,2,1,1,-0.5,0,"Ved ikke"]
["Installationer, Miljøklasse A. (7-20 m2) - Mek/EL","stk.",20,0,0,0,0,0]
["Installationer, Miljøklasse A. (7-20 m2) - SRO","stk.",10,0,0,0,0,0]
["Installationer, Miljøklasse A. (20-30 m2) - Mek/EL","stk.",20,0,0,0,0,0]
["Installationer, Miljøklasse A. (20-30 m2) - SRO","stk.",10,0,0,0,0,0]
["Installationer, Miljøklasse B. (7-20 m2) - Mek/EL","stk.",20,0,0,0,0,0]
["Installationer, Miljøklasse B. (7-20 m2) - SRO","stk.",10,0,0,0,0,0]
["Installationer, Miljøklasse B. (20-30 m2) - Mek/EL","stk.",20,0,0,0,0,0]
["Installationer, Miljøklasse B. (20-30 m2) - SRO","stk.",10,0,0,0,0,0]
["Overbygning (efter beliggenhed) ","stk.",75,0,0,0,0,0]
["Overløbsbygværker - Indre city",null,null,null,null,null,"",""]
["Kælder (< 7 m2) ","stk.",75,0,0,0,0,0]
["Kælder (7 - 20 m2) ","m2",75,0,0,0,0,0]
["Kælder (20 - 30 m2)","m2",75,0,0,0,0,0]
["Installationer (mindre end 7 m2)","stk.",20,0,0,0,0,0]
["Installationer, Miljøklasse A. (7-20 m2) - Mek/EL","stk.",20,0,0,0,0,0]
["Installationer, Miljøklasse A. (7-20 m2) - SRO","stk.",10,0,0,0,0,0]
["Installationer, Miljøklasse A. (20-30 m2) - Mek/EL","stk.",20,0,0,0,0,0]
["Installationer, Miljøklasse A. (20-30 m2) - SRO","stk.",10,0,0,0,0,0]
["Installationer, Miljøklasse B. (7-20 m2) - Mek/EL","stk.",20,0,0,0,0,0]
["Installationer, Miljøklasse B. (7-20 m2) - SRO","stk.",10,0,0,0,0,0]
["Installationer, Miljøklasse B. (20-30 m2) - Mek/EL","stk.",20,0,0,0,0,0]
["Installationer, Miljøklasse B. (20-30 m2) - SRO","stk.",10,0,0,0,0,0]
["Overbygning","stk.",75,0,0,0,0,0]
["Forsinkelsesbassiner - Land",null,null,null,null,null,"",""]
["Forsinkelsesbassiner, lukkede uden automatisk rensning og SRO (mindre end 1.000 m3)","m³",50,3300,390,390,-0.88181818181818183,0,"Misforstod definition i 2022"]
["Forsinkelsesbassiner, lukkede med automatisk rensning og SRO (mindre end 1.000 m3) - Konstruktioner","m³",75,0,0,0,0,0]
["Forsinkelsesbassiner, lukkede med automatisk rensning og SRO (mindre end 1.000 m3) - Mek/EL","m³",20,0,0,0,0,0]
["Forsinkelsesbassiner, lukkede med automatisk rensning og SRO (mindre end 1.000 m3) - SRO ","m³",10,0,0,0,0,0]
["Forsinkelsesbassiner, lukkede (1.000-4.000 m3) - Konstruktioner","m³",75,4250,0,0,-1,0,"Misforstod definition i 2022"]
["Forsinkelsesbassiner, lukkede (1.000-4.000 m3) - Mek/EL","m³",20,4250,0,0,-1,0,"Misforstod definition i 2022"]
["Forsinkelsesbassiner, lukkede (1.000-4.000 m3) - SRO","m³",10,4250,0,0,-1,0,"Misforstod definition i 2022"]
["Forsinkelsesbassiner, lukkede (4.000-10.000 m3) - Konstruktioner","m³",75,0,0,0,0,0]
["Forsinkelsesbassiner, lukkede (4.000-10.000 m3) - Mek/EL","m³",20,0,0,0,0,0]
["Forsinkelsesbassiner, lukkede (4.000-10.000 m3) - SRO","m³",10,0,0,0,0,0]
["Forsinkelsesbassiner, lukkede (større end 10.000 m3) - Konstruktioner","m³",75,0,0,0,0,0]
["Forsinkelsesbassiner, lukkede (større end 10.000 m3) - Mek/EL","m³",20,0,0,0,{"$f":"IF(D259=\"\",IF(E259>0,\"Ny data\",IF(E259=\"\",\"\",0)),IF(D259=0,IF(E259=0,0,\"Ny data\"),(E259-D259)/D259))","v":0},{"$f":"IF(E259=\"\",IF(F259>0,\"Ny data\",IF(F259=\"\",\"\",0)),IF(E259=0,IF(F259=0,0,\"Ny data\"),(F259-E259)/E259))","v":0}]
["Forsinkelsesbassiner, lukkede (større end 10.000 m3) - SRO","m³",10,0,0,0,0,0]
["Forsinkelsesbassiner - By",null,null,null,null,null,"",""]
["Forsinkelsesbassiner, lukkede uden automatisk rensning og SRO (mindre end 1.000 m3)","m³",50,0,928,928,"Ny data",0,"Misforstod definition i 2022"]
["Forsinkelsesbassiner, lukkede med automatisk rensning og SRO (mindre end 1.000 m3) - Konstruktioner","m³",75,1800,0,0,-1,0,"Misforstod definition i 2022"]
["Forsinkelsesbassiner, lukkede med automatisk rensning og SRO (mindre end 1.000 m3) - Mek/EL","m³",20,1800,0,0,-1,0,"Misforstod definition i 2022"]
["Forsinkelsesbassiner, lukkede med automatisk rensning og SRO (mindre end 1.000 m3) - SRO ","m³",10,1800,0,0,-1,0,"Misforstod definition i 2022"]
["Forsinkelsesbassiner, lukkede (1.000-4.000 m3) - Konstruktioner","m³",75,0,1000,1000,"Ny data",0,"Misforstod definition i 2022"]
["Forsinkelsesbassiner, lukkede (1.000-4.000 m3) - Mek/EL","m³",20,0,1000,1000,"Ny data",0,"Misforstod definition i 2022"]
["Forsinkelsesbassiner, lukkede (1.000-4.000 m3) - SRO","m³",10,0,1000,1000,"Ny data",0,"Misforstod definition i 2022"]
["Forsinkelsesbassiner, lukkede (4.000-10.000 m3) - Konstruktioner","m³",75,0,0,0,0,0]
["Forsinkelsesbassiner, lukkede (4.000-10.000 m3) - Mek/EL","m³",20,0,0,0,0,0]
["Forsinkelsesbassiner, lukkede (4.000-10.000 m3) - SRO","m³",10,0,0,0,0,0]
["Forsinkelsesbassiner, lukkede (større end 10.000 m3) - Konstruktioner","m³",75,0,0,0,0,0]
["Forsinkelsesbassiner, lukkede (større end 10.000 m3) - Mek/EL","m³",20,0,0,0,0,0]
["Forsinkelsesbassiner, lukkede (større end 10.000 m3) - SRO","m³",10,0,0,0,0,0]
["Forsinkelsesbassiner - City",null,null,null,null,null,"",""]
["Forsinkelsesbassiner, lukkede uden automatisk rensning og SRO (mindre end 1.000 m3)","m³",50,0,0,0,0,0]
["Forsinkelsesbassiner, lukkede med automatisk rensning og SRO (mindre end 1.000 m3) - Konstruktioner","m³",75,0,0,0,0,0]
["Forsinkelsesbassiner, lukkede med automatisk rensning og SRO (mindre end 1.000 m3) - Mek/EL","m³",20,0,0,0,0,0]
["Forsinkelsesbassiner, lukkede med automatisk rensning og SRO (mindre end 1.000 m3) - SRO ","m³",10,0,0,0,0,0]
["Forsinkelsesbassiner, lukkede (1.000-4.000 m3) - Konstruktioner","m³",75,0,0,0,0,0]
["Forsinkelsesbassiner, lukkede (1.000-4.000 m3) - Mek/EL","m³",20,0,0,0,0,0]
["Forsinkelsesbassiner, lukkede (1.000-4.000 m3) - SRO","m³",10,0,0,0,0,0]
["Forsinkelsesbassiner, lukkede (4.000-10.000 m3) - Konstruktioner","m³",75,0,0,0,0,0]
["Forsinkelsesbassiner, lukkede (4.000-10.000 m3) - Mek/EL","m³",20,0,0,0,0,0]
["Forsinkelsesbassiner, lukkede (4.000-10.000 m3) - SRO","m³",10,0,0,0,0,0]
["Forsinkelsesbassiner, lukkede (større end 10.000 m3) - Konstruktioner","m³",75,0,0,0,0,0]
["Forsinkelsesbassiner, lukkede (større end 10.000 m3) - Mek/EL","m³",20,0,0,0,0,0]
["Forsinkelsesbassiner, lukkede (større end 10.000 m3) - SRO","m³",10,0,0,0,0,0]
["Forsinkelsesbassiner - Indre city",null,null,null,null,null,"",""]
["Forsinkelsesbassiner, lukkede uden automatisk rensning og SRO (mindre end 1.000 m3)","m³",50,0,0,0,0,0]
["Forsinkelsesbassiner, lukkede med automatisk rensning og SRO (mindre end 1.000 m3) - Konstruktioner","m³",75,0,0,0,0,0]
["Forsinkelsesbassiner, lukkede med automatisk rensning og SRO (mindre end 1.000 m3) - Mek/EL","m³",20,0,0,0,0,0]
["Forsinkelsesbassiner, lukkede med automatisk rensning og SRO (mindre end 1.000 m3) - SRO ","m³",10,0,0,0,0,0]
["Forsinkelsesbassiner, lukkede (1.000-4.000 m3) - Konstruktioner","m³",75,0,0,0,0,0]
["Forsinkelsesbassiner, lukkede (1.000-4.000 m3) - Mek/EL","m³",20,0,0,0,0,0]
["Forsinkelsesbassiner, lukkede (1.000-4.000 m3) - SRO","m³",10,0,0,0,0,0]
["Forsinkelsesbassiner, lukkede (4.000-10.000 m3) - Konstruktioner","m³",75,0,0,0,0,0]
["Forsinkelsesbassiner, lukkede (4.000-10.000 m3) - Mek/EL","m³",20,0,0,0,0,0]
["Forsinkelsesbassiner, lukkede (4.000-10.000 m3) - SRO","m³",10,0,0,0,0,0]
["Forsinkelsesbassiner, lukkede (større end 10.000 m3) - Konstruktioner","m³",75,0,0,0,0,0]
["Forsinkelsesbassiner, lukkede (større end 10.000 m3) - Mek/EL","m³",20,0,0,0,0,0]
["Forsinkelsesbassiner, lukkede (større end 10.000 m3) - SRO","m³",10,0,0,0,0,0]
["Sparebassin/Laguner/Jordbassiner - Land",null,null,null,null,null,"",""]
["Jordbassin Klasse A og B","m³",50,6500,12386,12386,0.90553846153846151,0,"Misforstod definition i 2022"]
["Indløb-/udløbsarrangement","stk.",75,8,13,13,0.625,0,"Misforstod definition i 2022"]
["Andre bygninger (tekniske installationer, målere mv.)","m2",75,0,0,0,0,0]
["Sparebassin/Laguner/Jordbassiner - By",null,null,null,null,null,"",""]
["Jordbassin Klasse A og B","m³",50,0,24371,24371,"Ny data",0,"Misforstod definition i 2022"]
["Indløb-/udløbsarrangement","stk.",75,0,26,26,"Ny data",0,"Misforstod definition i 2022"]
["Andre bygninger (tekniske installationer, målere mv.)","m2",75,0,0,0,0,0]
["Sparebassin/Laguner/Jordbassiner - City",null,null,null,null,null,"",""]
["Jordbassin Klasse A og B","m³",50,0,0,0,0,0]
["Indløb-/udløbsarrangement","stk.",75,0,0,0,0,0]
["Andre bygninger (tekniske installationer, målere mv.)","m2",75,0,0,0,0,0]
["Sparebassin/Laguner/Jordbassiner - Indre city",null,null,null,null,null,"",""]
["Jordbassin Klasse A og B","m³",50,0,0,0,0,0]
["Indløb-/udløbsarrangement","stk.",75,0,0,0,0,0]
["Andre bygninger (tekniske installationer, målere mv.)","m2",75,0,0,0,0,0]

{"sheet":"Fællesfunktionsanlæg","index":2,"n_rows":13,"n_cols":9,"rows_kept":13,"cut":false,"hidden":false,"merged":[[0,0,1,0],[0,1,1,1],[0,2,1,2],[0,3,1,3],[0,8,1,8],[0,4,1,4],[0,5,1,5],[0,6,1,6],[0,7,1,7]]}
["Fællesfunktionsanlæg","Enhed","Standard-levetid","Samlet mængde per 31/12-2022","Samlet mængde per 31/12-2023","Samlet mængde per 31/12-2024","Afvigelse 2022-2023","Afvigelse 2023-2024","Bemærkninger"]
[]
["Andre",null,null,null,null,null,{"$f":"IF(D3=\"\",IF(E3>0,\"Ny data\",IF(E3=\"\",\"\",0)),IF(D3=0,IF(E3=0,0,\"Ny data\"),(E3-D3)/D3))","v":""},{"$f":"IF(E3=\"\",IF(F3>0,\"Ny data\",IF(F3=\"\",\"\",0)),IF(E3=0,IF(F3=0,0,\"Ny data\"),(F3-E3)/E3))","v":""}]
["Administrationbygninger","m2",75,2278,2278,2278,0,0]
["Arbejdsplads og kontor","stk.",5,10,23,23,1.3,0,"Fejl i opgørelse af arbejdsplader"]
["Køretøjer, personbil","stk.",5,9,9,10,0,0.1111111111111111]
["Køretøjer, små lastvogne (< 3.500 kg.)","stk.",5,2,2,2,0,0]
["Køretøjer, store lastvogne (> 3.500 kg.)","stk.",5,4,4,4,0,0]
["Køretøjer, entreprenørmaskiner","stk.",5,0,0,0,0,0]
["Slamsugere","stk.",5,1,1,1,0,0]
["Værksteder, garager","m2",75,0,0,0,0,0]
["Solcelleanlæg eksl. Inverter","kWp",25,392,392,392,0,0]
["Inverter til solcelleanlæg","kWp",10,385.7,386,386,7.7780658542911949E-4,0]